bitfinex-derivatives/quotes_BTCF0:USTF0_20220102
["timestamp","ask_amount","ask_price","bid_price","bid_amount"]
[1641094496616,1.19863682,47421.0,47420.0,0.001]
[1641094498015,1.19863682,47421.0,47420.0,0.190794]
[1641094498216,1.3185005,47424.0,47420.0,0.211879]
[1641094498415,1.1879125,47424.0,47423.0,0.20208192]
[1641094498615,0.54358125,47424.0,47423.0,1.30908192]
[1641094498815,0.0050524,47424.0,47423.0,3.01369719]
[1641094499020,0.08694799,47425.0,47423.0,3.01369719]
[1641094499217,4.799e-05,47425.0,47424.0,0.001]
[1641094499415,1.43043232,47428.0,47424.0,0.001]
[1641094499416,1.24518031,47428.0,47424.0,0.401]
[1641094499616,1.53444463,47435.0,47428.0,0.2113]
[1641094499817,2.10628634,47434.0,47433.0,1.4993]
[1641094500019,2.10628634,47434.0,47433.0,1.98405701]
[1641094500220,2.10628634,47434.0,47433.0,3.03959801]
[1641094500417,1.14288634,47434.0,47433.0,3.05157974]
[1641094500618,1.53224463,47441.0,47433.0,3.58332188]
[1641094500818,1.48024463,47441.0,47440.0,2.087]
[1641094501016,1.46024463,47441.0,47440.0,2.088]
[1641094501218,1.46024463,47458.0,47440.0,3.459297]
[1641094501418,0.12,47455.0,47448.0,0.8]
[1641094501618,1.40050701,47458.0,47443.0,0.18]
[1641094501819,0.07835,47455.0,47443.0,0.18]
[1641094502017,0.14033567,47453.0,47443.0,0.18]
[1641094502218,0.14033567,47453.0,47443.0,0.8]
[1641094502418,0.14033567,47453.0,47446.0,0.02107454]
[1641094502618,0.14033567,47453.0,47444.0,1.07483745]
[1641094502818,0.14033567,47453.0,47447.0,1.053751]
[1641094503020,0.14033567,47453.0,47445.0,1.053774]
[1641094503622,0.14033567,47453.0,47443.0,0.98]
[1641094503623,0.14033567,47453.0,47447.0,0.02107416]
[1641094504022,0.14033567,47453.0,47446.0,1.053762]
[1641094504221,0.14033567,47453.0,47447.0,0.02107416]
[1641094508827,0.14033567,47453.0,47446.0,0.009794]
[1641094509428,0.14033567,47453.0,47447.0,1.053751]
[1641094509631,0.14033567,47453.0,47447.0,1.127931]
[1641094514633,0.14033567,47453.0,47447.0,0.07418]
[1641094514836,0.14033567,47453.0,47446.0,0.009794]
[1641094515934,0.14033567,47453.0,47446.0,0.189794]
[1641094516335,0.14033567,47453.0,47446.0,0.009794]
[1641094516536,0.009794,47452.0,47438.0,0.02107818]
[1641094516735,0.02108144,47449.0,47438.0,0.18]
[1641094517135,0.02108144,47449.0,47439.0,1.053885]
[1641094518239,0.14033567,47444.0,47439.0,1.053885]
[1641094527243,0.08986437,47443.0,47441.0,0.3457477]
[1641094527843,0.14033567,47444.0,47441.0,0.3457477]
[1641094528044,0.59837896,47443.0,47439.0,0.08718]
[1641094528642,0.35902731,47441.0,47440.0,1.05394]
[1641094529745,0.35902731,47442.0,47440.0,1.05394]
[1641094531547,0.35902731,47443.0,47440.0,1.05394]
[1641094533452,0.14033567,47444.0,47440.0,1.05394]
[1641094533453,0.35902731,47442.0,47440.0,1.05394]
[1641094537151,0.35902731,47441.0,47440.0,1.05394]
[1641094539053,0.35902731,47442.0,47440.0,1.05394]
[1641094541762,0.35902731,47441.0,47440.0,1.05394]
[1641094546581,0.35902731,47442.0,47440.0,1.05394]
[1641094546778,0.009794,47441.0,47438.0,0.3457477]
[1641094546976,0.009794,47441.0,47438.0,0.3447477]
[1641094547176,0.009794,47441.0,47436.0,0.57624617]
[1641094547377,0.009794,47441.0,47434.0,0.57624617]
[1641094548281,0.92783592,47440.0,47434.0,0.57624617]
[1641094548580,0.59854879,47438.0,47433.0,0.57624617]
[1641094548778,0.59854879,47438.0,47437.0,0.001]
[1641094550378,0.59854879,47438.0,47437.0,0.0819]
[1641094551380,0.59854879,47438.0,47437.0,0.28297876]
[1641094551579,0.59854879,47438.0,47437.0,1.34679076]
[1641094551783,0.59854879,47438.0,47437.0,1.66402276]
[1641094551980,0.59854879,47438.0,47437.0,3.47884657]
[1641094552181,0.59854879,47444.0,47437.0,3.47884657]
[1641094552382,0.53754879,47444.0,47443.0,1.00107495]
[1641094552582,0.8379683,47445.0,47444.0,0.3204944]
[1641094552780,0.8356683,47445.0,47444.0,0.3214944]
[1641094552980,0.8356683,47445.0,47444.0,0.42326565]
[1641094553180,0.7151683,47445.0,47444.0,0.42326565]
[1641094553382,1.31312052,47451.0,47444.0,0.51422631]
[1641094553580,1.54593567,47468.0,47444.0,0.51422631]
[1641094553581,2.61192052,47463.0,47450.0,0.18]
[1641094553781,2.61192052,47463.0,47452.0,0.98]
[1641094554382,1.31312052,47463.0,47452.0,0.98]
[1641094554581,0.23016485,47462.0,47452.0,0.32033567]
[1641094555581,1.31312052,47457.0,47453.0,0.79672773]
[1641094556180,1.31312052,47457.0,47454.0,0.79672773]
[1641094557082,1.31312052,47459.0,47455.0,0.79672773]
[1641094557984,1.31312052,47459.0,47458.0,0.348287]
[1641094558586,1.52231845,47461.0,47458.0,0.348287]
[1641094558785,1.52231845,47461.0,47458.0,0.08162]
[1641094559389,0.08982918,47461.0,47458.0,0.429907]
[1641094559587,1.31746891,47459.0,47458.0,0.429907]
[1641094560290,0.08982918,47461.0,47458.0,0.429907]
[1641094560489,0.08982918,47461.0,47458.0,0.08162]
[1641094560988,1.52231845,47461.0,47458.0,0.08162]
[1641094561591,0.08982918,47461.0,47458.0,0.08162]
[1641094562194,1.31749205,47459.0,47458.0,0.429907]
[1641094562794,0.08982918,47461.0,47458.0,0.08162]
[1641094563094,0.08982918,47461.0,47457.0,0.348287]
[1641094564295,1.31751286,47458.0,47457.0,0.348287]
[1641094565900,1.52231845,47461.0,47456.0,0.348287]
[1641094566497,1.52231845,47461.0,47457.0,0.348287]
[1641094566498,1.31751043,47458.0,47457.0,0.348287]
[1641094567302,0.35874477,47458.0,47454.0,0.18]
[1641094568200,0.35874477,47458.0,47451.0,0.18]
[1641094568500,0.35874477,47458.0,47448.0,0.420581]
[1641094568703,0.35874477,47457.0,47448.0,0.420581]
[1641094568901,0.35874477,47457.0,47451.0,0.18]
[1641094569402,0.35874477,47455.0,47451.0,0.18]
[1641094569701,0.35874477,47455.0,47454.0,0.001]
[1641094569904,0.59790795,47456.0,47454.0,0.001]
[1641094570101,0.59790795,47456.0,47451.0,0.18]
[1641094570902,0.59790795,47457.0,47450.0,0.07484]
[1641094571102,0.59790795,47457.0,47451.0,0.18]
[1641094572202,0.59790795,47456.0,47451.0,0.18]
[1641094572804,0.59790795,47456.0,47450.0,0.25484]
[1641094573003,0.83707112,47458.0,47450.0,0.25484]
[1641094573004,0.59790795,47458.0,47450.0,0.25484]
[1641094575009,0.59790795,47457.0,47450.0,0.25484]
[1641094575507,0.59790795,47458.0,47450.0,0.25484]
[1641094576109,1.70490795,47458.0,47450.0,0.25484]
[1641094576307,1.70490795,47458.0,47450.0,0.07484]
[1641094576507,1.70490795,47458.0,47443.0,0.65003329]
[1641094576709,0.021078,47456.0,47443.0,0.62895834]
[1641094576908,1.24733567,47454.0,47444.0,0.18]
[1641094577109,1.24733567,47454.0,47444.0,1.233751]
[1641094577812,0.14033567,47454.0,47444.0,1.233751]
[1641094578209,0.59790795,47453.0,47444.0,1.233751]
[1641094578810,0.59790795,47453.0,47444.0,1.053751]
[1641094579210,0.59790795,47453.0,47444.0,1.233751]
[1641094580015,0.73824362,47454.0,47444.0,1.233751]
[1641094580213,1.84524362,47454.0,47444.0,1.233751]
[1641094581014,1.84524362,47454.0,47445.0,0.18]
[1641094581515,0.59790795,47453.0,47445.0,0.18]
[1641094582922,1.84524362,47454.0,47445.0,0.18]
[1641094583520,0.59790795,47453.0,47445.0,0.18]
[1641094584421,1.84524362,47454.0,47445.0,0.18]
[1641094585546,0.3586777,47452.0,47445.0,0.18]
[1641094585945,0.3586777,47449.0,47445.0,0.18]
[1641094587544,0.3586777,47449.0,47446.0,0.18]
[1641094587745,0.3586777,47449.0,47443.0,0.28067134]
[1641094588145,0.3586777,47449.0,47445.0,0.18]
[1641094588749,0.3586777,47449.0,47443.0,0.28067134]
[1641094589349,0.3586777,47449.0,47444.0,1.053829]
[1641094589549,0.3586777,47449.0,47445.0,0.18]
[1641094589950,0.3586777,47449.0,47447.0,0.18]
[1641094591052,0.3586777,47449.0,47443.0,0.62895834]
[1641094591252,0.3586777,47448.0,47445.0,0.348287]
[1641094592353,0.3586777,47446.0,47444.0,0.18]
[1641094592553,0.3586777,47446.0,47445.0,0.001]
[1641094593157,0.3586777,47446.0,47445.0,0.09301]
[1641094593654,0.59790795,47447.0,47445.0,0.09301]
[1641094593853,0.14033567,47448.0,47445.0,0.09201]
[1641094594054,0.92692023,47447.0,47445.0,0.09201]
[1641094594554,0.59842112,47446.0,47445.0,0.09201]
[1641094594755,0.59842112,47446.0,47445.0,0.09301]
[1641094595760,0.59842112,47446.0,47445.0,0.27301]
[1641094596258,0.59842112,47446.0,47445.0,0.09301]
[1641094603269,0.59842112,47446.0,47445.0,0.27301]
[1641094603569,0.92692023,47447.0,47445.0,0.27301]
[1641094603772,0.83707112,47446.0,47445.0,0.09201]
[1641094603987,0.83707112,47446.0,47445.0,0.181]
[1641094605073,0.92692023,47447.0,47445.0,0.001]
[1641094605273,0.92692023,47447.0,47445.0,0.18]
[1641094605475,0.08984911,47446.0,47445.0,0.18]
[1641094605675,0.08984911,47446.0,47445.0,0.001]
[1641094606777,0.92692023,47447.0,47445.0,0.001]
[1641094606975,0.92692023,47447.0,47445.0,0.18]
[1641094607174,0.59835328,47446.0,47445.0,0.18]
[1641094607376,0.59835328,47446.0,47445.0,0.181]
[1641094607677,0.59835328,47446.0,47445.0,0.001]
[1641094608679,0.08984911,47447.0,47445.0,0.001]
[1641094608877,0.92692023,47447.0,47441.0,0.18]
[1641094609280,0.35902248,47444.0,47441.0,0.18]
[1641094609481,0.35902248,47444.0,47443.0,0.001]
[1641094611900,0.92692023,47447.0,47443.0,0.001]
[1641094612097,0.83707112,47444.0,47443.0,0.348287]
[1641094612298,0.83707112,47444.0,47443.0,0.349287]
[1641094613901,0.009794,47445.0,47443.0,0.349287]
[1641094614203,0.08984911,47444.0,47441.0,0.528287]
[1641094614405,0.08984911,47444.0,47443.0,0.001]
[1641094615605,0.42156164,47443.0,47441.0,0.348287]
[1641094615804,1.107,47442.0,47441.0,0.348287]
[1641094616204,1.1803049,47440.0,47439.0,0.58096769]
[1641094616605,1.107,47440.0,47439.0,0.58096769]
[1641094616805,1.107,47440.0,47435.0,1.15966076]
[1641094616806,1.107,47440.0,47436.0,0.58096769]
[1641094617405,0.83834596,47437.0,47436.0,0.58096769]
[1641094617606,0.83834596,47437.0,47436.0,0.001]
[1641094619006,0.83834596,47437.0,47436.0,0.181]
[1641094619206,0.83834596,47437.0,47436.0,0.001]
[1641094619407,0.83834596,47437.0,47436.0,0.181]
[1641094622316,0.83834596,47437.0,47436.0,0.99871108]
[1641094622513,0.83834596,47438.0,47436.0,1.57967877]
[1641094622715,0.83834596,47438.0,47437.0,0.001]
[1641094623913,0.82994596,47438.0,47437.0,0.001]
[1641094624115,0.77374596,47438.0,47437.0,0.001]
[1641094624314,0.57854596,47438.0,47437.0,0.001]
[1641094624714,0.14033567,47440.0,47437.0,0.001]
[1641094624918,0.13373567,47440.0,47439.0,0.18]
[1641094625314,1.31751043,47445.0,47439.0,0.18]
[1641094625515,1.31751043,47445.0,47444.0,0.181]
[1641094626118,1.31751043,47448.0,47444.0,0.181]
[1641094626317,1.31751043,47448.0,47444.0,0.18]
[1641094627019,0.08985626,47447.0,47444.0,0.52940124]
[1641094628019,0.08985626,47449.0,47444.0,0.52940124]
[1641094628622,0.08985626,47449.0,47444.0,0.18]
[1641094629222,1.40736669,47449.0,47444.0,0.18]
[1641094629723,0.08985626,47448.0,47444.0,0.18]
[1641094631224,0.08985626,47448.0,47443.0,0.34940124]
[1641094631826,1.31751043,47447.0,47446.0,0.34940124]
[1641094632728,1.4578461,47447.0,47445.0,0.34940124]
[1641094633327,0.08985626,47446.0,47442.0,0.52940124]
[1641094634127,1.31783391,47443.0,47442.0,0.52940124]
[1641094636238,1.31783391,47444.0,47442.0,0.18]
[1641094636438,1.31783391,47444.0,47441.0,0.58233541]
[1641094637041,1.31783391,47444.0,47442.0,0.35110665]
[1641094637757,1.31783391,47443.0,47442.0,0.35110665]
[1641094643865,1.31783391,47443.0,47441.0,0.35110665]
[1641094644767,1.38093197,47442.0,47441.0,0.35110665]
[1641094645868,1.38093197,47442.0,47440.0,0.58233541]
[1641094646069,1.47078823,47442.0,47440.0,0.58233541]
[1641094646669,0.08985626,47441.0,47440.0,0.58233541]
[1641094649974,0.08985626,47441.0,47440.0,0.68955235]
[1641094650775,0.08985626,47441.0,47440.0,1.50840492]
[1641094654680,0.08985626,47441.0,47440.0,0.81885257]
[1641094654878,0.9280993,47441.0,47439.0,0.76648609]
[1641094656380,0.59873458,47440.0,47439.0,0.76648609]
[1641094656782,0.9280993,47441.0,47439.0,0.76648609]
[1641094657880,0.9280993,47441.0,47439.0,0.58648609]
[1641094658080,0.83824304,47440.0,47438.0,0.76648609]
[1641094658682,0.83824304,47439.0,47438.0,0.18]
[1641094661692,0.83824304,47439.0,47438.0,0.95758943]
[1641094661894,0.59875902,47439.0,47438.0,1.54407552]
[1641094662192,0.83824304,47440.0,47438.0,0.76648609]
[1641094662396,0.08985626,47441.0,47438.0,0.58648609]
[1641094662594,0.08985626,47439.0,47438.0,0.93848671]
[1641094662794,0.08985626,47439.0,47438.0,0.35200062]
[1641094662995,0.08985626,47439.0,47438.0,0.53200062]
[1641094663294,0.08985626,47441.0,47438.0,0.53200062]
[1641094664027,0.83828013,47439.0,47438.0,0.53200062]
[1641094665619,0.83828013,47439.0,47438.0,0.18]
[1641094666818,0.83828013,47439.0,47438.0,0.53195181]
[1641094667518,0.83828013,47439.0,47438.0,0.18]
[1641094668019,0.83828013,47439.0,47438.0,0.5319589]
[1641094670221,0.83828013,47439.0,47438.0,0.18]
[1641094671626,0.83828013,47440.0,47438.0,0.18]
[1641094672426,0.83828013,47440.0,47439.0,0.35191179]
[1641094674632,0.08985626,47441.0,47439.0,0.53191179]
[1641094675028,0.08985626,47440.0,47439.0,0.53191179]
[1641094675930,0.27393197,47442.0,47439.0,0.53191179]
[1641094675931,0.08985626,47441.0,47439.0,0.53191179]
[1641094676431,0.08985626,47441.0,47440.0,0.35191179]
[1641094677232,0.08985626,47441.0,47439.0,0.76648609]
[1641094677734,0.08985626,47441.0,47440.0,1.35706496]
[1641094678639,0.08985626,47441.0,47440.0,1.53706496]
[1641094679639,0.08985626,47441.0,47440.0,1.35706496]
[1641094681240,0.08985626,47441.0,47440.0,0.58648609]
[1641094682241,0.08985626,47441.0,47440.0,1.35706496]
[1641094684642,0.08985626,47441.0,47440.0,1.53706496]
[1641094688247,0.08985626,47441.0,47440.0,1.35706496]
[1641094692862,0.08985626,47441.0,47439.0,0.58648609]
[1641094693662,0.08985626,47441.0,47440.0,0.58648609]
[1641094705476,0.51144055,47441.0,47440.0,0.58648609]
[1641094708881,0.51144055,47441.0,47439.0,1.33567285]
[1641094709983,0.08985626,47440.0,47439.0,0.74918676]
[1641094713890,0.08985626,47440.0,47439.0,1.56803933]
[1641094719502,0.08985626,47440.0,47439.0,1.63084933]
[1641094720697,0.08985626,47440.0,47439.0,0.81199676]
[1641094737221,0.08985626,47440.0,47439.0,0.74918676]
[1641094738222,0.08985626,47440.0,47439.0,1.57397997]
[1641094739024,1.31783391,47442.0,47439.0,1.57397997]
[1641094739625,1.40769017,47442.0,47439.0,1.57397997]
[1641094739827,1.31783391,47441.0,47440.0,0.58920204]
[1641094740527,1.40769017,47441.0,47440.0,1.3383888]
[1641094741128,1.31783391,47441.0,47440.0,0.58920204]
[1641094741526,0.08985626,47441.0,47440.0,1.3383888]
[1641094743532,1.40769017,47442.0,47440.0,0.58920204]
[1641094743937,1.40769017,47442.0,47441.0,0.35348594]
[1641094746838,1.40769017,47442.0,47440.0,0.35348594]
[1641094747238,0.08985626,47442.0,47441.0,0.35348594]
[1641094747837,1.71970993,47443.0,47441.0,0.35348594]
[1641094750644,1.31783391,47442.0,47441.0,0.35348594]
[1641094755346,1.71970993,47443.0,47441.0,0.35348594]
[1641094757051,1.31783391,47442.0,47441.0,0.35348594]
[1641094757250,0.06810086,47440.0,47439.0,0.76920204]
[1641094757452,1.31783391,47442.0,47439.0,0.76920204]
[1641094759770,1.71970993,47443.0,47439.0,0.76920204]
[1641094760171,1.71970993,47443.0,47439.0,0.58920204]
[1641094760574,0.02108551,47440.0,47436.0,0.82479321]
[1641094760774,0.02108942,47437.0,47436.0,0.78699321]
[1641094761173,0.03088342,47437.0,47434.0,1.15966076]
[1641094761374,1.24733567,47435.0,47434.0,1.15966076]
[1641094761575,1.24733567,47435.0,47432.0,0.82258409]
[1641094762374,1.24733567,47435.0,47430.0,1.15966076]
[1641094762574,1.107,47433.0,47430.0,1.15966076]
[1641094762775,0.42167896,47430.0,47424.0,1.17966076]
[1641094763376,0.14033567,47428.0,47424.0,1.17966076]
[1641094763774,0.14033567,47428.0,47425.0,0.70126077]
[1641094764378,0.14033567,47428.0,47424.0,0.02]
[1641094766377,1.24733567,47428.0,47424.0,0.02]
[1641094768378,1.46591425,47426.0,47424.0,0.02]
[1641094770280,1.46591425,47426.0,47425.0,0.18]
[1641094770580,1.60887545,47426.0,47424.0,0.02]
[1641094771378,0.02109238,47425.0,47424.0,0.02]
[1641094771580,1.48700663,47425.0,47424.0,0.02]
[1641094772581,1.62871692,47425.0,47423.0,0.03828971]
[1641094773683,1.62871692,47425.0,47414.0,0.35391571]
[1641094773881,1.62871692,47425.0,47423.0,0.03828971]
[1641094774284,1.48700663,47425.0,47423.0,0.03828971]
[1641094774484,1.62871692,47425.0,47414.0,0.47391571]
[1641094774689,1.62871692,47425.0,47414.0,0.53391571]
[1641094775988,1.62871692,47425.0,47423.0,0.03828971]
[1641094777290,1.48700663,47425.0,47423.0,0.03828971]
[1641094777687,0.38000663,47425.0,47423.0,0.03828971]
[1641094779287,0.35891425,47425.0,47423.0,0.03828971]
[1641094779488,0.35891425,47425.0,47424.0,0.18]
[1641094780288,0.49924992,47428.0,47424.0,0.181]
[1641094780488,0.49924992,47428.0,47427.0,0.001]
[1641094780889,0.49924992,47428.0,47427.0,0.03928971]
[1641094781991,0.14033567,47428.0,47427.0,0.03928971]
[1641094783691,0.35891425,47432.0,47427.0,0.03928971]
[1641094783891,0.35891425,47432.0,47431.0,0.03828971]
[1641094784091,0.35891425,47432.0,47431.0,0.10774971]
[1641094785493,0.35891425,47432.0,47431.0,0.06946]
[1641094785694,0.35891425,47432.0,47431.0,0.10774971]
[1641094789595,0.35891425,47432.0,47431.0,0.06946]
[1641094789798,0.08988174,47432.0,47430.0,0.62839998]
[1641094790402,0.02108829,47433.0,47431.0,0.35370479]
[1641094791999,0.02108829,47433.0,47430.0,0.03828971]
[1641094792000,1.40778489,47432.0,47430.0,0.3919945]
[1641094793202,1.40778489,47432.0,47430.0,0.03828971]
[1641094793500,0.08988174,47432.0,47430.0,0.3919945]
[1641094796302,1.40778489,47432.0,47430.0,0.3919945]
[1641094797805,0.08988174,47432.0,47430.0,0.3919945]
[1641094798702,0.08988174,47432.0,47430.0,0.03828971]
[1641094798904,1.40778489,47432.0,47430.0,0.03828971]
[1641094799703,1.40778489,47432.0,47430.0,0.3919945]
[1641094800003,0.08988174,47432.0,47430.0,0.3919945]
[1641094801104,0.08988174,47432.0,47431.0,0.35370479]
[1641094803809,0.08988174,47432.0,47430.0,0.62839998]
[1641094804507,0.08988174,47432.0,47431.0,0.35345477]
[1641094806210,0.08988174,47432.0,47430.0,0.62839998]
[1641094806721,0.08988174,47432.0,47431.0,0.35357693]
[1641094809325,0.08988174,47432.0,47431.0,0.72753498]
[1641094809524,1.40778489,47432.0,47431.0,1.31764525]
[1641094809924,0.08988174,47432.0,47431.0,0.59011027]
[1641094810123,0.08988174,47432.0,47430.0,0.62839998]
[1641094812427,0.08988174,47432.0,47431.0,0.35359122]
[1641094815131,0.08988174,47432.0,47430.0,0.62839998]
[1641094815332,0.08988174,47432.0,47431.0,1.31722272]
[1641094815733,0.08988174,47432.0,47430.0,0.62839998]
[1641094817037,0.08988174,47432.0,47431.0,0.35369845]
[1641094819141,0.08988174,47432.0,47430.0,0.39198816]
[1641094822142,0.08988174,47432.0,47431.0,0.35369845]
[1641094828655,0.08988174,47432.0,47430.0,0.62839998]
[1641094829656,0.08988174,47432.0,47431.0,0.35368079]
[1641094830962,1.40778489,47432.0,47431.0,0.35368079]
[1641094833161,1.40778489,47432.0,47430.0,0.3919705]
[1641094835966,1.40778489,47432.0,47431.0,0.35368079]
[1641094837568,0.08988174,47432.0,47431.0,0.35368079]
[1641094841175,0.08988174,47432.0,47430.0,0.3919705]
[1641094842076,1.73980995,47431.0,47430.0,0.3919705]
[1641094843478,1.82969169,47431.0,47430.0,0.3919705]
[1641094844878,0.02970612,47430.0,47429.0,0.59011027]
[1641094845280,1.82969169,47431.0,47429.0,0.59011027]
[1641094845784,0.08988174,47430.0,47428.0,0.59011027]
[1641094847895,0.26988174,47430.0,47428.0,0.59011027]
[1641094849088,0.08988174,47429.0,47428.0,0.59011027]
[1641094849288,0.08988174,47429.0,47427.0,0.59011027]
[1641094850592,0.51157065,47429.0,47427.0,0.59011027]
[1641094851293,0.08988174,47428.0,47426.0,1.31884893]
[1641094851493,0.08988174,47428.0,47427.0,0.001]
[1641094860206,0.26988174,47428.0,47427.0,0.001]
[1641094860403,0.29097268,47428.0,47427.0,0.001]
[1641094860603,0.29097268,47428.0,47427.0,0.35463409]
[1641094860804,0.11097268,47428.0,47427.0,0.35463409]
[1641094861006,0.17097268,47428.0,47427.0,0.35463409]
[1641094861204,0.29097268,47428.0,47427.0,0.35363409]
[1641094861406,0.12076668,47428.0,47426.0,0.52202033]
[1641094861605,1.40776668,47428.0,47426.0,0.52202033]
[1641094862004,1.22776668,47428.0,47424.0,0.82611651]
[1641094862205,1.37688174,47427.0,47422.0,0.85821651]
[1641094862405,1.88292412,47427.0,47422.0,0.85821651]
[1641094862906,0.14033567,47423.0,47422.0,0.0321]
[1641094864508,0.23021741,47423.0,47422.0,0.72272346]
[1641094865108,0.23021741,47423.0,47422.0,0.0321]
[1641094869427,1.54839631,47423.0,47422.0,0.0321]
[1641094869928,0.23021741,47423.0,47422.0,0.0321]
[1641094870728,0.25131038,47423.0,47422.0,0.0321]
[1641094872943,0.25131038,47423.0,47422.0,0.10353]
[1641094874038,0.25131038,47423.0,47422.0,0.4583654]
[1641094874238,0.25131038,47423.0,47422.0,0.10353]
[1641094875850,0.25131038,47423.0,47422.0,0.4583654]
[1641094878945,0.25131038,47423.0,47422.0,0.10353]
[1641094880043,0.25131038,47423.0,47422.0,0.4583654]
[1641094884951,0.25131038,47423.0,47422.0,0.10353]
[1641094885151,0.25131038,47423.0,47422.0,0.0321]
[1641094889656,1.35831038,47423.0,47422.0,0.0321]
[1641094889857,0.26110438,47423.0,47413.0,0.14033567]
[1641094890057,0.26110438,47423.0,47413.0,0.17133567]
[1641094890458,0.26110438,47423.0,47413.0,0.26033567]
[1641094890657,0.18,47421.0,47413.0,0.14033567]
[1641094890858,0.35909169,47418.0,47413.0,0.14033567]
[1641094891660,0.35909169,47417.0,47413.0,0.14033567]
[1641094893661,0.08988174,47422.0,47413.0,0.14033567]
[1641094894061,1.52237101,47422.0,47413.0,0.14033567]
[1641094894262,1.31664379,47418.0,47416.0,0.82611651]
[1641094896062,1.31664379,47418.0,47416.0,1.4897415]
[1641094897563,1.31664379,47418.0,47417.0,0.59391374]
[1641094903269,1.52237101,47421.0,47417.0,0.59391374]
[1641094904176,1.52237101,47421.0,47418.0,0.35692375]
[1641094905275,1.43248927,47420.0,47418.0,0.35692375]
[1641094905874,1.52237101,47420.0,47418.0,0.35692375]
[1641094906977,1.31806453,47419.0,47415.0,0.35692375]
[1641094907377,1.63995014,47419.0,47415.0,0.35692375]
[1641094908784,0.08988174,47418.0,47415.0,0.35692375]
[1641094914090,0.009794,47417.0,47415.0,0.35692375]
[1641094914891,0.08988174,47416.0,47414.0,0.35692375]
[1641094918294,0.511686,47416.0,47414.0,0.35692375]
[1641094918694,0.51168768,47416.0,47414.0,0.35692375]
[1641094919096,0.08988174,47415.0,47414.0,0.35692375]
[1641094924808,0.17072174,47415.0,47414.0,0.35692375]
[1641094925205,0.19181863,47415.0,47411.0,0.85821651]
[1641094925407,0.69799534,47415.0,47409.0,1.15966076]
[1641094925805,1.80499534,47415.0,47409.0,1.15966076]
[1641094926005,0.14033567,47410.0,47409.0,1.15966076]
[1641094926807,0.34143446,47410.0,47405.0,1.15966076]
[1641094927006,0.16143446,47410.0,47405.0,1.15966076]
[1641094927607,0.34143446,47410.0,47405.0,1.15966076]
[1641094927807,0.08988174,47409.0,47403.0,0.57125643]
[1641094928010,0.14033567,47404.0,47403.0,0.57125643]
[1641094928208,0.21159567,47404.0,47403.0,0.57125643]
[1641094929409,0.21159567,47404.0,47401.0,1.19156076]
[1641094929811,0.22138967,47404.0,47401.0,0.0319]
[1641094935822,0.21159567,47404.0,47401.0,0.2119]
[1641094936016,0.14033567,47404.0,47401.0,0.38816372]
[1641094937717,0.14033567,47404.0,47402.0,0.35626372]
[1641094940927,0.14033567,47404.0,47401.0,0.38816372]
[1641094941540,0.14033567,47404.0,47401.0,0.0319]
[1641094943546,0.49954277,47404.0,47401.0,0.38816372]
[1641094944444,0.14033567,47404.0,47402.0,0.53626372]
[1641094944645,0.14033567,47404.0,47402.0,0.62344372]
[1641094944844,0.14033567,47404.0,47402.0,0.44344372]
[1641094945145,0.14033567,47404.0,47403.0,0.35626372]
[1641094946548,0.14033567,47404.0,47402.0,0.44344372]
[1641094946947,0.14033567,47404.0,47403.0,0.35626372]
[1641094948149,0.14033567,47404.0,47402.0,0.35626372]
[1641094948950,0.14033567,47404.0,47403.0,0.18]
[1641094949148,0.14033567,47404.0,47402.0,0.35626372]
[1641094951052,0.14033567,47404.0,47403.0,0.35626372]
[1641094951758,0.14033567,47404.0,47402.0,0.62913782]
[1641094951960,0.08992076,47403.0,47401.0,0.0319]
[1641094953156,0.08992076,47403.0,47402.0,0.62913782]
[1641094955059,0.97847391,47404.0,47402.0,0.62913782]
[1641094955559,0.08992146,47403.0,47402.0,0.62913782]
[1641094957862,0.97847391,47404.0,47402.0,0.62913782]
[1641094958562,0.97847391,47404.0,47403.0,0.18]
[1641094958761,0.97847391,47404.0,47402.0,0.62913782]
[1641094959171,0.08992212,47403.0,47402.0,0.62913782]
[1641094959662,0.08992212,47403.0,47402.0,0.80913782]
[1641094959863,0.08992212,47403.0,47402.0,0.62913782]
[1641094963068,0.92806036,47403.0,47402.0,0.62913782]
[1641094964367,0.92806036,47403.0,47402.0,0.80913782]
[1641094964566,0.92806036,47403.0,47402.0,0.62913782]
[1641094964966,0.92806036,47403.0,47402.0,0.80913782]
[1641094965368,0.92806036,47403.0,47402.0,0.62913782]
[1641094965868,0.08992212,47403.0,47402.0,0.62913782]
[1641094967177,0.08992212,47403.0,47402.0,0.80913782]
[1641094968270,0.08992212,47403.0,47402.0,0.62913782]
[1641094972576,0.08992212,47403.0,47402.0,1.8183589]
[1641094974485,0.08992212,47403.0,47402.0,0.62913782]
[1641094983715,0.92916076,47403.0,47402.0,0.62913782]
[1641094984709,0.08992212,47403.0,47402.0,0.62913782]
[1641094986812,0.08992212,47403.0,47402.0,1.81880201]
[1641094987314,0.08992212,47403.0,47402.0,0.62913782]
[1641094988014,0.08992212,47403.0,47402.0,0.80913782]
[1641094988713,0.08992212,47403.0,47402.0,0.62913782]
[1641094989614,0.08992212,47403.0,47400.0,1.26784724]
[1641094990018,0.08992212,47403.0,47401.0,0.11988014]
[1641094990219,0.83929961,47402.0,47401.0,0.11988014]
[1641094990516,0.83929961,47402.0,47401.0,0.29988014]
[1641094990718,0.83929961,47402.0,47401.0,0.18]
[1641094991117,0.83929961,47402.0,47401.0,0.74901748]
[1641094991315,0.83929961,47402.0,47401.0,0.92901748]
[1641094991717,0.83929961,47402.0,47401.0,0.74901748]
[1641094992919,0.83929961,47402.0,47401.0,0.92901748]
[1641094993316,0.08992212,47405.0,47401.0,0.93881148]
[1641094993517,1.31806453,47408.0,47404.0,0.18]
[1641094993718,1.31806453,47408.0,47407.0,0.18]
[1641094993918,1.31806453,47408.0,47407.0,0.24303]
[1641094994118,1.31806453,47408.0,47407.0,0.36290966]
[1641094994419,0.59908104,47408.0,47407.0,0.24403]
[1641094994817,0.59908104,47408.0,47407.0,0.36389216]
[1641094995117,0.08088422,47411.0,47407.0,1.55155748]
[1641094995319,0.08088422,47411.0,47410.0,0.181]
[1641094995721,0.97328072,47418.0,47410.0,0.35222041]
[1641094996019,0.97328072,47418.0,47417.0,0.18]
[1641094996218,0.97328072,47418.0,47417.0,0.25382]
[1641094996419,0.97328072,47419.0,47417.0,0.07382]
[1641094996622,0.97328072,47419.0,47418.0,0.18]
[1641094997219,0.4692688,47420.0,47417.0,0.07382]
[1641094997419,0.4692688,47420.0,47419.0,0.18]
[1641094997619,1.6709688,47429.0,47419.0,0.18]
[1641094997820,0.4790628,47429.0,47421.0,0.14033567]